bitfinex/quotes_ETHUSD_20240709
["timestamp","ask_amount","ask_price","bid_price","bid_amount"]
[1720515785059,0.355572,3095.9,3095.8,3.23018]
[1720515786377,0.355572,3095.9,3095.8,6.46036]
[1720515786965,0.355572,3095.9,3095.8,7.01036]
[1720515788634,0.355572,3095.9,3095.3,6.23065]
[1720515788635,0.355572,3095.9,3095.3,3.0]
[1720515788852,0.355572,3095.9,3095.5,3.2304]
[1720515789087,0.355572,3095.9,3095.7,3.23019]
[1720515789667,0.355572,3095.9,3095.6,3.23038]
[1720515790300,0.355572,3095.9,3095.7,3.23027]
[1720515790656,0.355572,3095.9,3095.8,3.23018]
[1720515792574,0.355572,3095.9,3095.8,6.46036]
[1720515793184,0.355572,3095.9,3095.8,8.17936]
[1720515793561,0.355572,3095.9,3095.8,8.72936]
[1720515793958,0.355572,3095.9,3095.8,11.95954]
[1720515795011,0.355572,3095.9,3095.8,8.17936]
[1720515795160,0.355572,3095.9,3095.8,3.23018]
[1720515795501,0.355572,3095.9,3095.5,3.23043]
[1720515795654,0.355572,3095.9,3095.7,3.23018]
[1720515795850,0.355572,3095.9,3095.8,3.23018]
[1720515796493,0.355572,3095.9,3095.8,4.94918]
[1720515797489,0.355572,3095.9,3095.8,1.719]
[1720515797685,0.355572,3095.9,3095.7,3.23018]
[1720515798004,0.355572,3095.9,3095.6,3.23033]
[1720515798310,0.355572,3095.9,3095.7,3.23027]
[1720515798947,0.355572,3095.9,3095.7,6.46048]
[1720515799220,0.355572,3095.9,3095.8,3.23018]
[1720515799375,0.355572,3095.9,3095.7,3.23025]
[1720515799815,0.355572,3095.9,3095.8,3.23018]
[1720515800387,0.355572,3095.9,3095.8,6.46036]
[1720515800620,0.355572,3095.9,3095.8,7.01036]
[1720515801524,0.355572,3095.9,3095.8,3.23018]
[1720515801816,0.355572,3095.9,3095.3,3.23067]
[1720515801817,1.82054,3095.4,3095.3,3.23067]
[1720515802014,1.82054,3095.4,3095.3,8.18037]
[1720515802315,1.82054,3095.4,3095.3,4.94967]
[1720515802515,1.82054,3095.4,3095.1,3.23083]
[1720515802724,4.10774,3095.4,3094.8,3.23117]
[1720515803015,4.10774,3095.4,3094.9,3.23102]
[1720515804493,4.10774,3095.4,3094.8,3.23115]
[1720515804817,3.2307,3095.3,3094.6,3.23139]
[1720515805026,3.2307,3095.3,3094.6,3.23138]
[1720515805405,4.52332413,3095.4,3094.8,3.23122]
[1720515806252,7.75392413,3095.4,3094.8,3.23122]
[1720515806540,10.98460413,3095.4,3094.8,3.23122]
[1720515806716,1.09846041,3095.3,3094.8,3.23122]
[1720515807354,4.32917041,3095.3,3094.6,3.23134]
[1720515807644,4.32917041,3095.3,3094.4,4.95057]
[1720515807645,3.23083,3095.2,3094.4,1.719]
[1720515807835,3.23103,3095.0,3094.4,1.719]
[1720515808143,3.23103,3095.0,3094.3,3.23167]
[1720515808362,3.23103,3095.0,3094.3,3.23166]
[1720515808647,3.23126,3094.8,3094.1,3.23187]
[1720515809441,3.27949128,3094.7,3093.9,3.23211]
[1720515809642,3.27949128,3094.7,3093.9,3.2321]
[1720515809848,3.27949128,3094.7,3094.0,3.23206]
[1720515810007,4.1998041,3094.7,3094.0,3.23206]
[1720515810230,4.1998041,3094.7,3093.8,3.23217]
[1720515810534,3.23166,3094.4,3093.7,3.23231]
[1720515810735,0.564856,3094.3,3093.7,3.23231]
[1720515811265,0.564856,3094.3,3093.5,3.23253]
[1720515811266,3.84470728,3094.3,3093.5,3.23253]
[1720515811478,3.796606,3094.3,3093.2,1.719]
[1720515811634,3.796606,3094.3,3093.6,3.23246]
[1720515811826,0.7028266,3094.2,3093.6,6.46485]
[1720515812054,5.6485,3094.5,3093.8,3.23221]
[1720515812635,8.88013,3094.5,3093.8,3.23221]
[1720515812835,5.6485,3094.5,3093.8,3.23221]
[1720515813279,2.4169,3094.5,3093.9,3.23216]
[1720515813454,2.4169,3094.5,3094.1,3.23192]
[1720515813634,2.4169,3094.5,3093.9,3.23208]
[1720515814147,2.4169,3094.5,3094.0,3.23205]
[1720515814531,2.4169,3094.5,3093.9,3.23208]
[1720515814945,2.4169,3094.5,3094.0,3.23199]
[1720515815154,7.36,3094.9,3093.6,4.1763]
[1720515815347,10.59112,3094.9,3094.2,3.23178]
[1720515815548,1.288372,3094.8,3094.2,3.23178]
[1720515815772,4.519652,3094.8,3094.1,3.23188]
[1720515816085,7.36,3094.9,3094.2,0.06463199]
[1720515816289,7.36,3094.9,3094.3,3.23165]
[1720515816491,10.5912,3094.9,3094.1,3.23188]
[1720515817163,7.36,3094.9,3094.2,3.23175]
[1720515817361,7.36,3094.9,3094.3,3.23172]
[1720515818081,7.36,3094.9,3094.3,6.4634]
[1720515818279,7.36,3094.9,3094.5,3.23149]
[1720515818583,2.2927,3095.0,3094.5,3.23148]
[1720515818783,2.2927,3095.0,3094.6,3.23138]
[1720515819095,2.2927,3095.0,3094.0,4.95102]
[1720515819382,2.2927,3095.0,3094.6,3.23137]
[1720515819589,2.2927,3095.0,3094.6,6.46274]
[1720515819991,2.2927,3095.0,3094.4,3.23158]
[1720515820296,3.23113,3094.9,3094.3,3.23174]
[1720515821346,2.84505,3095.0,3094.3,6.4634]
[1720515821347,6.07615,3095.0,3094.3,6.4634]
[1720515821545,2.84505,3095.0,3094.4,3.23162]
[1720515822046,2.2927,3095.0,3094.4,3.23162]
[1720515822289,2.2927,3095.0,3094.0,1.719]
[1720515822594,0.482586,3094.9,3094.0,1.719]
[1720515822795,0.482586,3094.9,3094.5,3.23147]
[1720515822948,0.482586,3094.9,3094.3,3.23166]
[1720515823148,0.482586,3094.9,3094.6,3.23137]
[1720515823660,0.482586,3094.9,3094.6,3.23141]
[1720515824477,0.482586,3094.9,3094.6,6.46277]
[1720515824802,0.482586,3094.9,3094.8,3.23122]
[1720515825001,0.482586,3094.9,3094.8,6.46244]
[1720515825148,0.482586,3094.9,3094.8,8.18144]
[1720515826300,0.482586,3094.9,3094.8,6.46244]
[1720515826599,0.482586,3094.9,3094.6,3.23138]
[1720515826885,0.482586,3094.9,3094.7,3.23131]
[1720515827382,0.482586,3094.9,3094.5,3.23144]
[1720515827759,0.482586,3094.9,3094.7,3.23126]
[1720515827989,0.482586,3094.9,3094.3,3.23167]
[1720515828150,0.482586,3094.9,3094.3,6.46333]
[1720515828351,0.482586,3094.9,3094.3,3.23174]
[1720515829048,0.482586,3094.9,3094.2,3.23178]
[1720515829251,1.4225716,3094.9,3094.2,3.23178]
[1720515829448,1.4225716,3094.9,3094.3,3.23173]
[1720515829862,1.4225716,3094.9,3094.3,6.46341]
[1720515830284,1.4225716,3094.9,3094.1,3.23189]
[1720515830285,3.23127,3094.8,3094.1,3.23189]
[1720515830583,3.69671416,3094.7,3094.1,3.23189]
[1720515830792,3.69671416,3094.7,3093.9,3.23213]
[1720515830793,5.53701,3094.6,3093.9,3.23213]
[1720515831079,5.53701,3094.6,3093.9,6.46424]
[1720515831460,5.53701,3094.6,3093.9,3.23211]
[1720515832087,2.3055,3094.6,3094.0,3.23204]
[1720515832589,5.53694,3094.6,3094.0,3.23204]
[1720515832760,3.159194,3094.6,3094.0,6.46402]
[1720515833164,2.3055,3094.6,3094.2,3.23183]
[1720515833370,3.0,3094.8,3094.2,3.23183]
[1720515833686,3.0,3094.8,3093.6,4.95145]
[1720515833687,1.11961875,3094.7,3093.9,3.23216]
[1720515833873,1.11961875,3094.6,3094.1,3.23192]
[1720515834066,4.35102875,3094.7,3094.1,3.23192]
[1720515834255,1.11961875,3094.6,3094.1,3.23192]
[1720515835474,4.25195148,3094.7,3094.1,3.23192]
[1720515835475,1.11965769,3094.5,3094.1,3.23192]
[1720515835664,1.02056148,3094.7,3094.1,3.23192]
[1720515835861,1.11964216,3094.6,3094.1,3.23192]
[1720515836086,1.11964216,3094.5,3094.1,3.23192]
[1720515836264,1.11964216,3094.6,3094.1,3.23192]
[1720515836764,5.51139152,3094.6,3094.0,3.23206]
[1720515837091,3.23211,3094.0,3092.6,7.43]
[1720515837294,3.23216,3093.9,3093.2,3.23283]
[1720515837458,2.4079,3093.8,3093.2,3.23283]
[1720515837658,2.4079,3093.8,3093.0,3.23307]
[1720515837659,5.6402,3093.8,3093.0,3.23302]
[1720515838082,3.23238,3093.7,3093.0,3.23302]
[1720515838289,4.12443413,3093.7,3093.1,3.23299]
[1720515838488,3.23248,3093.6,3092.8,3.23324]
[1720515838689,3.23264,3093.5,3092.6,3.23345]
[1720515838996,3.23264,3093.5,3092.8,3.23324]
[1720515838997,6.46529,3093.5,3092.8,3.23324]
[1720515839291,3.233,3093.1,3092.5,3.23353]
[1720515839795,2.3378,3093.4,3092.6,0.06466417]
[1720515840096,2.3378,3093.4,3092.8,3.2333]
[1720515840386,2.3378,3093.4,3092.7,3.23332]
[1720515840387,2.3378,3093.4,3092.9,3.23317]
[1720515841361,0.16499722,3094.7,3093.2,3.23284]
[1720515841362,2.3378,3093.8,3093.2,3.23284]
[1720515841576,1.1199705,3093.7,3093.0,3.233]
[1720515841790,3.0,3093.7,3093.0,3.233]
[1720515842028,4.0209999,3093.7,3093.1,3.23292]
[1720515842181,4.0209999,3093.7,3092.9,1.719]
[1720515842182,2.3378,3093.8,3092.9,1.719]
[1720515842515,9.6516,3094.1,3093.4,3.23267]
[1720515842805,0.96516,3094.0,3093.4,3.23267]
[1720515843391,0.96516,3094.0,3093.5,0.06464502]
[1720515843608,9.6516,3094.1,3093.5,0.06464502]
[1720515843901,9.6516,3094.1,3093.4,3.23267]
[1720515844102,9.6516,3094.1,3093.5,0.06464503]
[1720515844619,9.6516,3094.1,3093.4,3.23261]
[1720515844906,13.98828281,3094.6,3093.7,3.23228]
[1720515844907,2.2916,3094.5,3093.7,3.23228]
[1720515845230,1.119781,3094.4,3093.5,3.23249]
[1720515845405,2.2916,3094.5,3093.4,3.2326]
[1720515845613,0.33798345,3094.6,3093.3,3.23272]
[1720515845614,2.4899,3094.2,3093.3,3.23272]
[1720515845795,1.48087091,3094.1,3093.3,3.23272]
[1720515845998,0.36097156,3094.1,3093.1,3.23293]
[1720515846207,2.396,3093.9,3092.9,6.46631]
[1720515846506,2.396,3093.9,3092.8,1.719]
[1720515846715,2.396,3093.9,3093.4,3.23268]
[1720515846870,5.396,3094.3,3093.5,0.06464475]
[1720515847202,5.396,3094.3,3093.2,1.719]
[1720515847203,5.396,3094.3,3093.6,3.23237]
[1720515847569,5.396,3094.3,3093.7,3.23237]
[1720515847924,2.396,3094.3,3093.7,3.23237]
[1720515848390,2.396,3094.3,3093.7,3.29700914]
[1720515848911,2.396,3094.3,3093.8,3.29689914]
[1720515849116,2.396,3094.3,3093.2,4.95186]
[1720515849117,2.396,3094.3,3093.2,1.719]
[1720515849320,2.6356,3094.3,3093.4,3.23261]
[1720515849693,2.6356,3094.3,3093.5,3.23257]
[1720515849887,2.6356,3094.3,3093.7,3.23236]
[1720515849888,2.396,3094.3,3093.7,3.23236]
[1720515850114,2.396,3094.3,3093.5,3.23249]
[1720515850738,2.396,3094.3,3093.6,3.23238]
[1720515850881,2.396,3094.3,3093.7,3.23236]
[1720515852746,2.4825,3094.7,3094.1,3.23194]
[1720515852881,2.4825,3094.7,3094.1,6.46382]
[1720515853223,2.4825,3094.7,3094.1,3.23188]
[1720515853224,3.73899478,3094.7,3094.1,3.23188]
[1720515853388,2.4825,3094.7,3094.3,6.46348]
[1720515853585,2.4825,3094.7,3094.3,3.23168]
[1720515853816,0.482586,3094.9,3094.4,3.23163]
[1720515854926,3.482586,3094.9,3094.4,3.23163]
[1720515855101,4.3790946,3094.9,3094.4,3.23163]
[1720515855422,4.3790946,3094.9,3094.0,1.719]
[1720515855423,4.3790946,3094.9,3094.0,3.23198]
[1720515855620,1.11962433,3094.8,3094.1,3.23192]
[1720515855808,4.3790946,3094.9,3094.1,3.23192]
[1720515856016,1.9410871,3094.8,3094.1,3.23192]
[1720515856217,2.4459,3094.7,3093.8,3.23219]
[1720515856417,2.4459,3094.7,3094.0,3.23204]
[1720515857394,1.11965124,3094.6,3094.0,3.23204]
[1720515857620,0.43870056,3094.6,3094.0,3.23204]
[1720515858129,0.43870056,3094.6,3094.0,6.46408]
[1720515858329,2.4459,3094.7,3094.0,6.46408]
[1720515859123,2.4459,3094.7,3094.1,3.23193]
[1720515859531,2.4459,3094.7,3094.2,3.23185]
[1720515859691,3.482586,3094.9,3094.3,3.23166]
[1720515859890,1.11963654,3094.8,3094.3,3.23166]
[1720515860230,3.482586,3094.9,3094.4,3.23161]
[1720515860458,1.11959112,3094.8,3094.4,3.23161]
[1720515860627,3.482586,3094.9,3094.4,3.23161]
[1720515860955,1.71245349,3094.8,3094.4,3.23161]
[1720515861259,1.71245349,3094.8,3094.1,3.23194]
[1720515861260,1.11960489,3094.7,3094.1,3.23194]
[1720515862931,1.11960489,3094.7,3094.3,3.23168]
[1720515863129,1.11960489,3094.8,3094.1,3.23189]
[1720515863333,1.84787864,3094.8,3094.1,3.23189]
[1720515863517,1.11960489,3094.7,3094.1,3.23189]
[1720515863720,0.72827375,3094.8,3094.1,3.23189]
[1720515864040,1.11965239,3094.7,3094.1,3.23189]
[1720515864246,2.2867,3094.5,3093.8,3.23221]
[1720515864660,1.11970423,3094.4,3093.8,3.23221]
[1720515864868,0.18479261,3094.6,3094.0,3.232]
[1720515865023,4.83683747,3094.9,3094.0,3.232]
[1720515865218,4.63718528,3094.8,3094.0,3.232]
[1720515865445,1.11963291,3094.7,3094.0,3.232]
[1720515865642,3.51755237,3094.8,3094.1,3.23194]
[1720515865851,1.11960788,3094.7,3094.1,3.23194]
[1720515866052,3.51755237,3094.8,3094.1,3.23194]
[1720515866279,1.11960855,3094.7,3094.1,3.23194]
[1720515866477,0.51755237,3094.8,3094.1,3.23194]
[1720515866676,1.11959392,3094.7,3094.1,3.23194]
[1720515866978,0.51755237,3094.8,3094.1,3.23194]
[1720515867149,1.11957675,3094.7,3094.1,3.23194]
[1720515867352,0.21197151,3094.7,3094.1,3.23194]
[1720515867689,1.16773989,3094.6,3093.7,3.23232]
[1720515867985,3.79185147,3094.4,3093.4,3.23268]
[1720515868138,2.52199136,3094.3,3093.4,3.23268]
[1720515868345,2.52199136,3094.3,3093.2,3.2328]
[1720515868346,4.66391204,3094.2,3093.2,3.23279]
[1720515868673,3.59055162,3094.1,3093.3,3.23273]
[1720515868974,1.11985162,3094.0,3093.3,3.23273]
[1720515869385,1.11985162,3094.0,3093.4,3.23268]
[1720515870379,2.4707,3094.1,3093.4,3.23268]
[1720515870380,1.11989911,3093.9,3093.4,3.23268]
[1720515870678,0.04810128,3093.9,3093.0,3.23304]
[1720515870884,1.11993629,3093.8,3093.0,3.23304]
[1720515871074,0.04810128,3094.0,3093.0,3.23304]
[1720515871075,0.25188013,3093.9,3093.0,3.23304]
[1720515871273,1.11997368,3093.8,3093.0,3.23304]
[1720515872475,1.11997368,3093.7,3093.1,3.23292]
[1720515873185,3.49497368,3093.8,3093.1,3.23292]
[1720515873341,1.11997368,3093.7,3093.1,3.23292]
[1720515873540,2.375,3093.8,3093.1,3.23292]
[1720515873744,1.11999023,3093.7,3093.1,3.23292]
[1720515873966,2.375,3093.8,3093.1,3.23292]
[1720515874179,2.375,3093.8,3093.1,6.46583]
[1720515874180,1.11999316,3093.7,3093.1,6.46583]
[1720515874380,2.375,3093.8,3093.1,6.46583]
[1720515874768,1.69460324,3094.1,3092.8,1.719]
[1720515874769,3.65833284,3094.1,3093.3,6.46547]
[1720515874970,1.11987885,3094.0,3093.3,6.46547]
[1720515875179,2.3035,3094.1,3093.4,3.23267]
[1720515875344,1.11987653,3094.0,3093.4,3.23267]
[1720515875698,2.3035,3094.1,3093.4,3.23267]
[1720515875980,1.11985019,3094.0,3093.4,3.23267]
[1720515876187,2.3035,3094.1,3093.4,3.23267]
[1720515876343,1.11985903,3094.0,3093.4,3.23267]
[1720515876546,2.3035,3094.1,3093.4,3.23267]
[1720515876991,1.11985046,3094.0,3093.4,3.23267]
[1720515877149,2.3035,3094.1,3093.4,3.23267]
[1720515877346,1.11985168,3094.0,3093.4,3.23267]
[1720515877645,2.3035,3094.1,3093.4,3.23267]
[1720515878486,3.0,3094.2,3093.4,0.064648]
[1720515878688,1.11982104,3094.1,3093.9,3.23215]
[1720515878980,2.459,3094.4,3093.8,3.23227]
[1720515879183,1.11975348,3094.3,3093.8,3.23227]
[1720515879370,2.459,3094.4,3093.8,3.23227]
[1720515879558,1.11974538,3094.3,3093.8,3.23227]
[1720515879888,5.459,3094.4,3093.8,3.23227]
[1720515880055,2.459,3094.4,3093.8,3.23227]
[1720515880260,1.11973645,3094.3,3093.9,3.23215]
[1720515880461,2.459,3094.4,3093.9,3.23215]
[1720515881073,1.11972888,3094.3,3093.9,3.23215]
[1720515881271,2.459,3094.4,3093.9,3.23215]
[1720515882663,2.459,3094.4,3093.9,6.46426]
[1720515883268,2.459,3094.4,3093.9,3.23211]
[1720515883771,2.459,3094.4,3093.9,6.46421]
[1720515884100,2.459,3094.4,3093.9,6.4642]
[1720515884462,2.459,3094.4,3094.0,3.23204]
[1720515887612,5.459,3094.4,3094.0,3.23204]
[1720515888143,1.83825802,3094.9,3094.3,1.719]
[1720515888288,1.83825802,3094.9,3094.8,6.46244]
[1720515888289,0.482586,3094.9,3094.8,6.46244]
[1720515891143,0.482586,3094.9,3094.8,3.23122]
[1720515891808,0.482586,3094.9,3094.3,3.23169]
[1720515892240,0.482586,3094.9,3094.4,3.23163]
[1720515893111,0.482586,3094.9,3094.5,3.23153]
[1720515893513,0.482586,3094.9,3094.8,3.23122]
[1720515893926,0.482586,3094.9,3094.8,6.46244]
[1720515899893,0.719134,3094.9,3094.8,6.46244]
[1720515902399,0.719134,3094.9,3094.8,9.75827561]
[1720515902609,0.719134,3094.9,3094.8,10.24366]
[1720515902757,1.82054,3095.4,3095.3,9.6921]
[1720515902959,7.36,3096.6,3096.0,3.22987]
[1720515903194,2.3912,3096.8,3096.1,4.94881]
[1720515903507,2.56028609,3096.8,3096.1,3.22981]
[1720515904475,2.56028609,3096.8,3096.0,3.22997]
[1720515904691,2.56028609,3096.8,3096.1,3.22985]
[1720515904893,0.25602861,3096.7,3096.1,3.22985]
[1720515905166,3.25602861,3096.7,3096.1,3.22985]
[1720515905368,3.25602861,3096.7,3096.1,6.45966]
[1720515907221,3.25602861,3096.7,3096.2,3.22976]
[1720515909184,2.56028609,3096.8,3096.2,3.22976]
[1720515909185,2.3912,3096.8,3096.2,3.22976]
[1720515909380,2.385,3097.1,3096.4,3.22946]
[1720515910809,5.385,3097.1,3096.4,3.22946]
[1720515910967,1.2745,3097.0,3096.2,3.22968]
[1720515911162,1.2745,3097.0,3096.0,3.22988]
[1720515911163,0.04810128,3096.9,3096.0,3.22988]
[1720515911370,1.32260128,3097.0,3096.1,3.2298]
[1720515912204,1.2745,3097.0,3096.2,3.22975]
[1720515912414,1.2745,3097.0,3095.7,3.23022]
[1720515912415,2.3639,3096.8,3095.7,3.23022]
[1720515912597,2.3639,3096.8,3095.8,3.2301]
[1720515912908,5.3639,3096.8,3096.0,3.22989]
[1720515913077,0.602985,3096.7,3095.8,3.2301]
[1720515913277,2.2816,3096.5,3095.7,4.94922]
[1720515914216,3.0,3096.6,3095.7,1.719]
[1720515914381,0.94089274,3096.7,3095.7,1.719]
[1720515914382,0.33790774,3096.7,3095.7,1.719]
[1720515914583,0.96645351,3096.7,3095.9,3.23002]
[1720515914792,0.96645351,3096.7,3095.9,6.46004]
[1720515915108,0.96645351,3096.7,3096.0,3.22995]
[1720515915509,0.96645351,3096.7,3095.9,3.23002]
[1720515915510,0.33790774,3096.7,3096.1,3.22984]
[1720515916010,0.33790774,3096.7,3096.4,3.22955]
[1720515916512,0.33790774,3096.7,3096.2,3.22975]
[1720515916919,0.33790774,3096.7,3096.2,3.2297]
[1720515917084,0.33790774,3096.7,3096.0,1.719]
[1720515917085,0.33790774,3096.7,3096.3,3.2296]
[1720515917712,0.33790774,3096.7,3096.0,4.94897]
[1720515917893,2.3324,3096.6,3096.1,3.22984]
[1720515918496,2.3324,3096.6,3096.0,1.719]
[1720515918697,2.59943077,3096.6,3096.0,4.94894]
[1720515918929,2.3324,3096.6,3096.1,3.22984]
[1720515919499,2.3324,3096.6,3096.0,1.719]
[1720515919899,2.3324,3096.6,3096.1,3.22986]
[1720515920120,2.3324,3096.6,3096.3,3.22958]
[1720515920427,2.3324,3096.6,3096.0,1.719]
[1720515920428,2.3324,3096.6,3096.2,3.22976]
[1720515921407,0.33790774,3096.7,3096.3,3.22964]
[1720515922336,0.33790774,3096.7,3096.3,6.45924]
[1720515922827,0.33790774,3096.7,3096.3,3.2296]
[1720515923199,0.33790774,3096.7,3096.4,5.4852]
[1720515923602,0.33790774,3096.7,3096.4,3.2295]
[1720515923988,0.33790774,3096.7,3096.6,3.22934]
[1720515925332,0.33790774,3096.7,3096.6,6.45868]
[1720515927212,0.33790774,3096.7,3096.6,12.16932]
[1720515927391,0.33790774,3096.7,3096.6,12.71932]
[1720515927589,2.3529,3097.6,3097.1,3.22881]
[1720515927790,0.33787789,3097.2,3097.1,3.22881]
[1720515928028,0.33787789,3097.2,3096.3,3.2296]
[1720515928228,2.41630128,3097.1,3096.1,3.22984]
[1720515928540,0.27541792,3097.0,3096.3,3.22955]
[1720515928719,2.3682,3097.1,3096.3,3.22955]
[1720515929028,2.3682,3097.1,3096.6,3.22927]
[1720515929237,2.3682,3097.1,3096.6,6.45854]
[1720515929834,2.3682,3097.1,3096.6,3.22927]
[1720515929995,2.3682,3097.1,3096.4,3.2295]
[1720515930609,2.63880779,3097.1,3096.4,3.2295]
[1720515930927,2.63880779,3097.1,3096.4,3.22948]
[1720515931118,2.3682,3097.1,3096.5,3.22939]
[1720515931319,2.3682,3097.1,3096.6,3.22934]
[1720515931837,0.33787789,3097.2,3096.8,3.22913]
[1720515932490,0.33787789,3097.2,3096.2,4.94872]
[1720515932491,1.11871247,3097.1,3096.7,3.22923]
[1720515932696,1.11873988,3097.0,3096.2,1.719]
[1720515932897,0.33787789,3097.2,3096.2,1.719]
[1720515933106,1.11871632,3097.1,3096.7,3.22918]
[1720515933310,0.33787789,3097.2,3096.7,3.22918]
[1720515933713,1.11869991,3097.1,3096.7,3.22918]
[1720515934033,0.33787789,3097.2,3096.7,3.22918]
[1720515934239,1.11871654,3097.1,3096.5,3.22941]
[1720515934392,1.11871654,3097.1,3096.5,6.4588]
[1720515934595,1.1187504,3097.0,3096.5,3.22939]
[1720515934797,0.33787789,3097.2,3096.5,3.22939]
[1720515935040,0.33787789,3097.2,3096.7,3.22922]
[1720515935223,0.33787789,3097.2,3096.8,3.22912]
[1720515935596,0.33787789,3097.2,3096.9,3.22897]
[1720515935926,0.33787789,3097.2,3096.9,6.45794]
[1720515936235,0.33787789,3097.2,3096.6,1.719]
[1720515936399,1.11868059,3097.1,3096.6,1.719]
[1720515936601,0.33787789,3097.2,3096.6,4.94826]
[1720515936934,1.11870754,3097.1,3096.6,4.94826]
[1720515937100,0.33787789,3097.2,3096.6,4.94826]
[1720515937299,1.11872715,3097.1,3096.6,4.94826]
[1720515937494,1.1187328,3097.0,3096.3,3.2296]
[1720515937694,1.1187328,3097.0,3096.2,1.719]
[1720515937695,1.1187328,3097.0,3096.5,6.45876]
[1720515937936,0.33787789,3097.2,3096.6,3.22934]
[1720515938138,1.11873231,3097.1,3096.6,3.22934]
[1720515938305,1.11873231,3097.0,3096.5,3.22937]
[1720515938509,0.33787789,3097.2,3096.5,3.22945]
[1720515938720,1.11873743,3097.1,3096.5,3.22945]
[1720515938896,1.11873743,3097.0,3096.3,3.22959]
[1720515939097,3.57503743,3096.9,3096.3,3.22959]
[1720515939308,2.4563,3096.9,3096.3,3.22959]
[1720515941038,2.4563,3096.9,3096.3,6.45919]
[1720515941217,2.4563,3096.9,3096.3,3.22959]
[1720515941825,2.82707789,3097.2,3096.6,3.22932]
[1720515942127,1.11873936,3097.1,3096.6,3.22932]
[1720515942343,1.11873936,3097.0,3096.6,3.22932]
[1720515942547,2.82707789,3097.2,3096.5,3.22944]
[1720515942548,1.11873936,3097.1,3096.5,3.22944]
[1720515942757,1.11874477,3097.0,3096.5,3.22944]
[1720515942927,2.82707789,3097.2,3096.6,3.22934]
[1720515943260,1.11873769,3097.1,3096.6,3.22934]
[1720515943555,2.82707789,3097.2,3096.5,3.22942]
[1720515943556,1.11873769,3097.0,3096.5,3.22942]
[1720515943716,1.11873769,3097.1,3096.5,3.22942]
[1720515944225,1.11873769,3097.1,3096.6,3.22928]
[1720515944425,2.82707789,3097.2,3096.6,3.22928]
[1720515944627,1.11871984,3097.1,3096.7,3.22924]
[1720515944841,1.11871984,3097.0,3096.5,3.22935]
[1720515945162,2.82707789,3097.2,3096.6,3.22929]
[1720515945163,1.11872417,3096.9,3096.6,3.22929]
[1720515945458,2.82707789,3097.2,3096.6,3.22929]
[1720515945614,1.11872457,3097.1,3096.4,3.22947]
[1720515945819,0.33785576,3096.8,3096.4,3.22947]
[1720515946016,0.33785576,3096.8,3096.6,3.22928]
[1720515946718,0.33785576,3096.8,3096.6,6.45857]
[1720515947162,0.33785576,3096.8,3096.7,3.22924]
[1720515950362,0.33785576,3096.8,3096.7,6.45848]
[1720515954383,7.36,3097.5,3097.0,3.22884]
[1720515954582,3.96603749,3097.6,3096.9,3.22902]
[1720515954583,0.33783323,3097.2,3096.9,3.22902]
[1720515954872,0.33783323,3097.2,3097.0,6.45772]
[1720515955080,1.11859686,3097.1,3097.0,3.22886]
[1720515956160,0.33783323,3097.2,3097.0,3.22886]
[1720515956676,1.11862257,3097.1,3097.0,3.22886]
[1720515956888,0.33783323,3097.2,3097.0,3.22886]
[1720515957177,1.11861996,3097.1,3097.0,3.22886]
[1720515957330,1.11861996,3097.1,3096.8,3.22906]
[1720515957735,1.11861996,3097.0,3096.8,3.22906]
[1720515957964,1.11861996,3097.1,3096.8,3.22906]
[1720515958166,0.33783323,3097.2,3096.8,3.22906]
[1720515958167,1.11868246,3097.0,3096.8,3.22906]
[1720515958469,0.33783323,3097.2,3096.8,3.22906]
[1720515958677,1.11867165,3097.1,3096.8,3.22906]
[1720515958889,1.11867165,3097.0,3096.8,3.22906]
[1720515959181,0.33783323,3097.2,3096.8,3.22906]
[1720515959384,1.1186675,3097.1,3096.8,6.45813]
[1720515959555,0.33783323,3097.2,3096.8,6.45813]
[1720515959736,1.11865828,3097.1,3096.8,6.45813]
[1720515960068,0.33783323,3097.2,3096.8,3.22906]
[1720515960242,1.11864754,3097.1,3096.6,4.94826]
[1720515960455,0.33783323,3097.2,3096.7,3.22915]
[1720515960640,1.11865693,3097.1,3096.7,3.22915]
[1720515960838,0.33783323,3097.2,3096.8,3.22913]
[1720515961074,2.4174,3097.0,3096.4,3.22953]
[1720515961246,2.4174,3097.0,3096.7,3.22921]
[1720515961455,0.33783323,3097.2,3096.7,3.22921]
[1720515961654,1.11866049,3097.1,3096.8,3.22911]
[1720515961863,0.33783323,3097.2,3096.8,3.22911]
[1720515962069,1.11862804,3097.1,3096.8,3.22911]
[1720515962385,1.11862804,3097.0,3096.8,3.22911]
[1720515962552,1.11862804,3097.1,3096.8,3.22911]
[1720515962882,1.11864266,3097.0,3096.8,3.22911]
[1720515963181,0.33783323,3097.2,3097.0,0.715]
[1720515963583,1.11863958,3097.1,3097.0,0.715]
[1720515963758,0.33783323,3097.2,3097.0,0.715]
[1720515964078,1.11866789,3097.1,3097.0,0.715]
[1720515964584,1.11866719,3097.1,3097.0,0.715]
[1720515965278,0.33783323,3097.2,3097.0,0.715]
[1720515965607,1.11860631,3097.1,3097.0,0.715]
[1720515966144,0.33783323,3097.2,3097.0,3.94393]
[1720515966382,0.33783323,3097.2,3097.0,7.1728]
[1720515967684,0.33783323,3097.2,3097.0,3.94387]
[1720515968182,0.33783323,3097.2,3097.0,7.17274]
[1720515969552,0.33783323,3097.2,3097.0,3.94387]
[1720515969753,0.33783323,3097.2,3097.1,0.715]
[1720515969992,1.45646275,3097.2,3097.1,0.715]
[1720515971205,0.33783323,3097.2,3097.1,0.715]
[1720515971355,0.33783323,3097.2,3097.1,3.94382]
[1720515973785,1.45642851,3097.2,3097.1,3.94382]